[Event "SixDays Budapest January-GM 2023"]
[Site "Budapest"]
[Date "2023.01.24"]
[Round "2.1"]
[White "Pajeken, Jakob Leon"]
[Black "Lucas, Arthur"]
[Result "1-0"]
[ECO "C11"]
[WhiteElo "2449"]
[BlackElo "2412"]
[Annotator "TA"]
[PlyCount "73"]
[EventDate "2023.01.23"]
[EventType "tourn"]
[EventCountry "HUN"]
[SourceTitle "playchess.com"]
[Source "ChessBase"]
[SourceQuality "1"]
[TimeControl "5400+30"]

{[%evp 20,73,0,18,27,0,30,16,16,16,20,10,22,15,14,18,18,0,0,0,0,0,339,137,444,470,473,473,445,381,412,474,458,454,464,360,450,442,474,467,456,429,424,408,420,428,445,391,595,573,704,700,694,687,29992,5310]} 1. e4 {[%emt 0:00:02]} e6 {[%emt 0:06:00]} 2. d4 {[%emt 0:00:05]} d5 {[%emt 0:00:04]} 3. Nc3 {[%emt 0:00:02]} Nf6 {[%emt 0:00:13]} 4. e5 {[%emt 0:00:03]} Nfd7 {[%emt 0:00:05]} 5. f4 {[%emt 0:00:01]} c5 {[%emt 0:00:06]} 6. Nf3 {[%emt 0:00:02]} Nc6 {[%emt 0:00:05]} 7. Be3 {[%emt 0:00:08]} cxd4 {[%emt 0:01:17]} 8. Nxd4 {[%emt 0:00:06]} Qb6 {[%emt 0:00:04]} 9. Qd2 {[%emt 0:02:05]} Qxb2 {[%emt 0:00:14]} 10. Rb1 {[%emt 0:00:17]} Qa3 {[%emt 0:00:06]} 11. Bb5 {[%emt 0:02:21] Rb3 is the strong threat.} Nxd4 {[%emt 0:00:18] C11: French: Classical System: 4 e5 and 4 Bg5 dxe4.} 12. Bxd4 {[%emt 0:00:15]} (12. Qxd4 a6 13. Bxd7+ Bxd7 14. Rxb7 Rc8 $17) 12... a6 {[%emt 0:00:27]} 13. Bxd7+ {[%emt 0:01:25]} Bxd7 {[%emt 0:00:02] The position is equal.} 14. Rb3 {[%emt 0:00:23]} Qe7 {[%emt 0:00:20]} 15. Rxb7 {[%emt 0:00:09]} Qh4+ {[%emt 0:00:44] is now more promising than 15...Rc8.} 16. g3 {[%emt 0:03:45]} Qd8 {[%emt 0:01:09]} 17. O-O $36 {[%emt 0:04:45][%cal Bh1f1,Bf1b1,Bb1d1][%mdl 2080] White has some pressure.} Rc8 {[%emt 0:06:16]} 18. Rfb1 {[%emt 0:08:08][%cal Of4f5] [#]} Bc5 $146 {[%emt 0:06:12]} ({Predecessor:} 18... Qa5 19. f5 Bc5 20. fxe6 Bxe6 21. R1b3 O-O 22. Kg2 Bxd4 23. Qxd4 Rc4 24. Qd3 d4 {0-1 Tari,A (2660)-Xiong,J (2692) Titled Tuesday intern op 15th Nov Late blitz 2022 (7)}) 19. Bxc5 {[%emt 0:05:57]} Rxc5 {[%emt 0:00:05]} 20. f5 {[%emt 0:07:57][%cal Of5f6] Threatens to win with f6!} exf5 {[%emt 0:21:59][%mdl 8192]} (20... Qa5 $11 21. R1b3 Rc4) 21. Qe3 {[%emt 0:08:48]} (21. Nxd5 $18 {and the rest is easy. Qd4 would be deadly.} Bb5 22. Rd1 Rxd5 23. Qxd5 Qxd5 24. Rxd5) 21... Rc4 {[%emt 0:09:17][%mdl 8192] Black cannot hold the game after this.} (21... Rc8 $16 {is tougher.}) 22. Nxd5 $18 {[%emt 0:01:08] And now Qa3 would win.} O-O {[%emt 0:05:04] [#] Black is weak on the dark squares} 23. Rd1 $1 {[%emt 0:01:20][%cal Ob7d7] Black must now prevent Rxd7!} Re4 {[%emt 0:34:12]} 24. Qa7 {[%emt 0:00:29]} Qa5 {[%emt 0:02:29]} 25. Rxd7 {[%emt 0:00:47] aiming for Ne7+.} (25. Ne7+ Kh8 $18) 25... Re1+ {[%emt 0:01:38]} 26. Kf2 {[%emt 0:00:08]} ({Weaker is} 26. Rxe1 Qxe1+ 27. Kg2 Qe4+ 28. Kg1 Qe1+ 29. Kg2 Qe4+ 30. Kf1 Qxc2 31. Ne7+ (31. Qxa6 Qxh2 32. Qd3 Qh1+ 33. Kf2 Qh2+ 34. Kf3 Qh1+ 35. Kf4 g6 $18) 31... Kh8 $18) 26... Rxd1 {[%emt 0:02:23]} 27. Ne7+ {[%emt 0:00:03][%mdl 64] Discovered Attack, Double Attack} Kh8 {[%emt 0:00:03] ( -> ...Qe1+)} 28. Rxd1 {[%emt 0:00:04]} Qxe5 {[%emt 0:00:55]} 29. Qe3 {[%emt 0:00:29]} Qb2 {[%emt 0:01:34]} 30. Qb3 {[%emt 0:00:14]} ({Inferior is} 30. Nxf5 Qxc2+ 31. Qe2 Qxf5+ 32. Kg2 Kg8 $17) 30... Qf6 {[%emt 0:01:25]} 31. Nd5 {[%emt 0:00:28]} Qh6 {[%emt 0:00:11]} 32. Kg2 {[%emt 0:00:13]} Re8 {[%emt 0:00:29]} 33. Qc4 {[%emt 0:01:12] Dodges Qc6} Qh5 {[%emt 0:01:02] [#]} (33... Qe6 {was called for.} 34. Rd2 h6) 34. Re1 $3 {[%emt 0:00:14][%cal Re1e8][%mdl 576] Deflection, Back Rank} Rg8 {[%emt 0:00:30]} (34... Rd8 35. Qxa6) 35. Nf4 {[%emt 0:00:18]} Qh6 {[%emt 0:00:12]} 36. Re7 {[%emt 0:01:08]} g5 {[%emt 0:00:49]} 37. Rxf7 {[%emt 0:00:51] Excellently played by Pajeken!   Weighted Error Value: White=0.18 (very precise) /Black=0.75} (37. Nh5 $142 f4 38. Qd4+ Qg7 39. Nxg7 h6 40. Nf5+ {[%mdl 64] Discovered Attack} Kh7 41. Rxf7+ Kg6 42. Qf6+ Kh5 43. Qxh6+ Kg4 44. Qh3#) 1-0

[Event "SixDays Budapest January-GM 2023"]
[Site "Budapest"]
[Date "2023.01.24"]
[Round "2.2"]
[White "Can, Isik"]
[Black "Kozak, Adam"]
[Result "1/2-1/2"]
[ECO "C26"]
[WhiteElo "2488"]
[BlackElo "2558"]
[Annotator "TA"]
[PlyCount "92"]
[EventDate "2023.01.23"]
[EventType "tourn"]
[EventCountry "HUN"]
[SourceTitle "playchess.com"]
[Source "ChessBase"]
[SourceQuality "1"]
[TimeControl "5400+30"]

{[%evp 9,92,-4,-6,-13,0,0,0,0,0,0,0,-18,0,-10,-5,-11,-26,-27,-29,-29,0,-16,0,0,0,0,0,0,0,0,0,0,0,0,0,0,0,0,0,0,0,0,0,0,0,0,18,0,18,18,18,15,18,17,17,24,32,32,32,32,52,32,32,0,0,0,0,0,0,0,0,0,0,0,0,0,0,0,0,0,0,0,0,0,0]} 1. e4 {[%emt 0:01:25]} e5 {[%emt 0:04:42]} 2. Nc3 {[%emt 0:00:03]} Nf6 {[%emt 0:01:44]} 3. Bc4 {[%emt 0:00:12]} Bc5 {[%emt 0:09:23]} 4. d3 {[%emt 0:02:08]} c6 {[%emt 0:02:49]} 5. Nf3 {[%emt 0:00:18]} d6 {[%emt 0:01:31]} 6. a4 {[%emt 0:07:10] C27: Vienna Game: 2...Nf6 3 Bc4 Nxe4.} a5 {[%emt 0:07:42]} 7. h3 {[%emt 0:01:10]} O-O {[%emt 0:05:53]} 8. O-O {[%emt 0:01:07]} h6 {[%emt 0:03:47]} 9. Re1 {[%emt 0:16:03]} Re8 {[%emt 0:12:11] [#]} 10. Ba2 $146 {[%emt 0:07:33]} ({Predecessor:} 10. Be3 Bb4 11. Bd2 Bc5 12. Be3 Bb4 {½-½ Abramov,G (2198)-Silin,V (2303) RUS-ch qf 12-1 email 2012}) 10... Nbd7 {[%emt 0:02:01][%cal Bb8d7,Bd7f8,Bf8e6,Be6c5][%mdl 32]} 11. Be3 {[%emt 0:01:52]} Bb4 {[%emt 0:09:10]} 12. Nd2 {[%emt 0:09:51]} Nf8 {[%emt 0:01:32]} 13. d4 {[%emt 0:09:55]} exd4 {[%emt 0:05:06]} 14. Bxd4 {[%emt 0:00:09]} Ne6 {[%emt 0:00:13]} 15. Be3 {[%emt 0:05:13]} Nc5 {[%emt 0:00:20]} 16. Nc4 {[%emt 0:08:46]} d5 {[%emt 0:03:32]} ({Resist} 16... Nfxe4 17. Nxe4 Nxe4 18. c3 $16) ({Don't do} 16... Ncxe4 17. Bb6 Qd7 18. Nxe4 Nxe4 19. c3 $16) 17. exd5 {[%emt 0:02:38]} cxd5 {[%emt 0:00:58]} 18. Bxc5 {[%emt 0:03:35]} Rxe1+ {[%emt 0:00:17]} 19. Qxe1 {[%emt 0:00:05]} Bxc5 {[%emt 0:00:06]} 20. Rd1 {[%emt 0:00:44][%cal Oc3d5]} Be6 {[%emt 0:06:49]} 21. Ne3 {[%emt 0:01:58]} Bb4 {[%emt 0:00:46]} 22. Bxd5 {[%emt 0:05:13]} Bxd5 {[%emt 0:10:39]} 23. Nexd5 {[%emt 0:00:09]} Nxd5 {[%emt 0:00:02]} 24. Qe4 {[%emt 0:00:54]} (24. Rxd5 $2 {loses.} Qxd5 25. Nxd5 Bxe1 $19) 24... Bxc3 {[%emt 0:01:00]} 25. bxc3 {[%emt 0:00:24]} Qe8 {[%emt 0:00:58]} 26. Qxe8+ {[%emt 0:00:55]} Rxe8 {[%emt 0:00:05]} 27. Rxd5 $11 {[%emt 0:00:03][%mdl 4096] Endgame KR-KR} Re1+ {[%emt 0:00:40]} 28. Kh2 {[%emt 0:00:05]} Re2 {[%emt 0:04:14]} 29. Rxa5 {[%emt 0:01:16]} Rxf2 {[%emt 0:00:28]} 30. Ra8+ {[%emt 0:01:41]} Kh7 {[%emt 0:00:02]} 31. Rb8 {[%emt 0:00:36]} Rxc2 {[%emt 0:01:33]} 32. Rxb7 {[%emt 0:00:05]} Rxc3 {[%emt 0:00:53]} 33. Rxf7 {[%emt 0:00:06]} Ra3 {[%emt 0:00:29]} 34. Ra7 {[%emt 0:00:34] And now Ra6 would win.} h5 {[%emt 0:03:11]} 35. h4 {[%emt 0:00:12]} Kg6 {[%emt 0:01:00]} 36. a5 {[%emt 0:00:50]} Ra4 {[%emt 0:01:57] The position is equal.} 37. Kg3 {[%emt 0:01:47]} Kf6 {[%emt 0:00:41]} 38. Ra6+ {[%emt 0:00:42]} Kf5 {[%emt 0:00:34]} 39. Ra8 {[%emt 0:01:21]} Ra3+ {[%emt 0:00:25]} 40. Kh2 {[%emt 0:00:02]} g6 {[%emt 0:00:35]} 41. Rf8+ {[%emt 0:01:35]} Ke6 {[%emt 0:00:09]} 42. Ra8 {[%emt 0:00:47]} Kf5 {[%emt 0:00:05]} 43. Ra6 {[%emt 0:00:25]} (43. a6 $5 {[%cal Ra6a7]}) 43... Ra4 {[%emt 0:01:12]} 44. Kh3 {[%emt 0:00:01]} Ra3+ {[%emt 0:00:18]} 45. g3 {[%emt 0:00:04]} Ra2 {[%emt 0:00:28]} 46. Ra7 {[%emt 0:00:52]} Ke5 {[%emt 0:00:46] Weighted Error Value: White=0.03 (flawless) /Black=0.03 (flawless)} 1/2-1/2

[Event "SixDays Budapest January-GM 2023"]
[Site "Budapest"]
[Date "2023.01.24"]
[Round "2.3"]
[White "Olsen, Filip Boe"]
[Black "Ghazarian, Kirk"]
[Result "1/2-1/2"]
[ECO "E03"]
[WhiteElo "2428"]
[BlackElo "2466"]
[Annotator "TA"]
[PlyCount "102"]
[EventDate "2023.01.23"]
[EventType "tourn"]
[EventCountry "HUN"]
[SourceTitle "playchess.com"]
[Source "ChessBase"]
[SourceQuality "1"]
[TimeControl "5400+30"]

{[%evp 10,101,16,20,5,14,22,0,0,-1,3,-4,0,-8,-6,0,0,-3,-2,-14,0,0,16,0,8,0,4,-7,-12,-12,-8,-70,0,-31,0,0,0,0,35,29,30,30,35,36,55,59,134,128,132,122,133,122,123,99,121,71,62,25,80,71,97,47,67,45,56,0,6,0,0,0,0,0,0,0,0,0,0,0,0,0,0,0,0,0,0,0,0,0,0,0,0,0,0,0]} 1. d4 {[%emt 0:00:05]} Nf6 {[%emt 0:00:09]} 2. c4 {[%emt 0:00:12]} e6 {[%emt 0:00:19]} 3. g3 {[%emt 0:00:15]} d5 {[%emt 0:00:14]} 4. Bg2 {[%emt 0:00:10]} dxc4 {[%emt 0:00:11]} 5. Qa4+ {[%emt 0:00:18]} Nbd7 {[%emt 0:00:25]} 6. Qxc4 {[%emt 0:00:17]} c5 {[%emt 0:00:09] E03: Open Catalan: 5 Qa4+ Nbd7 6 Qxc4.} 7. Nf3 {[%emt 0:00:35][%cal Bg1f3,Bf3d4,Bd4b3][%mdl 32]} a6 {[%emt 0:01:49]} 8. Qb3 {[%emt 0:01:00]} cxd4 {[%emt 0:02:22]} 9. Nxd4 {[%emt 0:00:22][%cal Oe1g1]} Nc5 {[%emt 0:02:14][%csl LRb3,LRd4]} 10. Qc3 {[%emt 0:00:41] [#]} Be7 $146 {[%emt 0:04:16]} ({Predecessor:} 10... Bd7 11. O-O Rc8 12. Bf4 Be7 13. Qd2 b5 14. Rd1 O-O 15. Nb3 Na4 16. Nc3 Nxc3 17. bxc3 {½-½ Schelberg,M (1570)-Beckmann,K (1856) GER T267-E03-S email 2017}) 11. O-O {[%emt 0:05:13]} O-O {[%emt 0:01:03]} 12. Nb3 {[%emt 0:13:32]} Nd5 {[%emt 0:09:50]} 13. Qf3 {[%emt 0:08:44]} Bd7 {[%emt 0:08:01]} 14. Rd1 {[%emt 0:01:32]} Qc7 {[%emt 0:04:55]} 15. e4 {[%emt 0:09:14] Strongly threatening Nxc5.} Nb6 {[%emt 0:08:31]} 16. Nxc5 {[%emt 0:21:07]} (16. Nc3 $5 {[%cal Rc1f4]}) 16... Bxc5 {[%emt 0:00:19]} 17. Nc3 {[%emt 0:03:59]} Bc6 {[%emt 0:02:48]} 18. Bf4 {[%emt 0:02:36]} Qe7 {[%emt 0:07:33]} 19. h4 {[%emt 0:01:38]} Rad8 {[%emt 0:02:30]} 20. Qg4 {[%emt 0:09:59]} (20. Rac1 $11) 20... Nc4 {[%emt 0:04:22]} (20... e5 $1 $15 21. Bc1 Bd4) 21. e5 {[%emt 0:05:34] [#]} Bxf2+ $1 {[%emt 0:26:03][%mdl 64] Decoy} 22. Kxf2 {[%emt 0:01:19] Threatens to win with Bxc6.} Qc5+ {[%emt 0:00:50]} 23. Kf1 {[%emt 0:00:46] And now Qe2 would win.} Nxb2 {[%emt 0:00:50]} 24. Rxd8 {[%emt 0:06:17]} Rxd8 {[%emt 0:00:31]} 25. Bxc6 {[%emt 0:01:49]} Qxc6 {[%emt 0:04:17]} 26. Ne2 {[%emt 0:01:21][%cal Bc3e2,Be2g1,Bg1f3][%mdl 32]} Qe4 {[%emt 0:06:20] White must now prevent ...Rd2.} 27. Ng1 $1 {[%emt 0:00:58]} Nc4 {[%emt 0:02:34]} ({Less strong is} 27... Rd2 28. Qf3 Qc4+ 29. Ne2 $16) (27... Nd3 $14 28. Qf3 (28. Nf3 $2 Qc4 $19) 28... Qc4) 28. Qe2 $16 {[%emt 0:00:49]} Qd5 {[%emt 0:00:32]} 29. Nf3 {[%emt 0:00:43]} b5 {[%emt 0:00:25]} 30. Kg1 {[%emt 0:01:37]} h6 {[%emt 0:00:32]} 31. Kh2 {[%emt 0:00:24]} a5 {[%emt 0:00:22]} 32. Rb1 {[%emt 0:00:55]} ({White should play} 32. Rc1) 32... b4 {[%emt 0:00:27]} 33. Ne1 {[%emt 0:01:09]} (33. Rc1 $5 {[%cal Rc1c4]} Nb6 34. Rc2 $16) 33... Na3 {[%emt 0:00:20]} (33... Nd2 $11 {remains equal.} 34. Rb2 Ne4) 34. Rb2 {[%emt 0:00:33]} Qd1 {[%emt 0:00:46]} 35. Be3 {[%emt 0:01:24]} ({Better is} 35. Qxd1 $16 Rxd1 36. Nf3) 35... Qxe2+ {[%emt 0:00:33]} 36. Rxe2 {[%emt 0:00:01]} Nc4 {[%emt 0:00:12]} 37. Bc5 {[%emt 0:01:18]} (37. Bf4 $14) 37... Rd5 $11 {[%emt 0:00:25][%csl LRc5,LRe5] [#] The position is equal.} 38. Bd6 {[%emt 0:00:08]} Nxd6 {[%emt 0:00:31]} (38... Kh7 39. Kg2) 39. exd6 {[%emt 0:00:02]} Rxd6 {[%emt 0:00:01][%mdl 4096] Endgame KRN-KR} 40. Kg2 {[%emt 0:00:17]} g5 {[%emt 0:00:50]} 41. hxg5 {[%emt 0:00:25]} hxg5 {[%emt 0:00:02]} 42. Kf3 {[%emt 0:00:21]} f6 {[%emt 0:00:24] Against Re5} 43. Rc2 {[%emt 0:00:29]} Kf7 {[%emt 0:00:28]} 44. Ke3 {[%emt 0:01:04]} Rd1 {[%emt 0:00:45]} 45. Nd3 {[%emt 0:00:20]} Rg1 {[%emt 0:00:37]} 46. Kf2 {[%emt 0:00:07]} Rh1 {[%emt 0:00:22] Hoping for ...Rh2+.} 47. Ne1 {[%emt 0:00:47]} Rh2+ {[%emt 0:00:20]} 48. Ng2 {[%emt 0:00:01]} Rh1 {[%emt 0:00:16]} 49. Ne1 {[%emt 0:00:29]} Rh2+ {[%emt 0:00:04]} 50. Ng2 {[%emt 0:00:03]} Rh1 {[%emt 0:00:04]} 51. Ne1 {[%emt 0:00:12]} Rh2+ {Weighted Error Value: White=0.10 (very precise) /Black=0.11 (very precise)} 1/2-1/2

[Event "SixDays Budapest January-GM 2023"]
[Site "Budapest"]
[Date "2023.01.24"]
[Round "2.4"]
[White "Berczes, David"]
[Black "Hacker, Jonas"]
[Result "1-0"]
[ECO "A06"]
[WhiteElo "2436"]
[BlackElo "2446"]
[Annotator "TA"]
[PlyCount "86"]
[EventDate "2023.01.23"]
[EventType "tourn"]
[EventCountry "HUN"]
[SourceTitle "playchess.com"]
[Source "ChessBase"]
[SourceQuality "1"]
[TimeControl "5400+30"]

{[%evp 11,86,4,15,0,4,6,5,5,24,0,0,0,0,0,0,0,26,13,13,14,34,31,33,28,20,25,30,21,27,32,27,16,32,13,35,23,33,25,52,37,80,84,191,191,200,190,185,191,258,256,239,166,181,121,250,93,92,92,144,136,152,148,150,150,158,130,126,104,117,120,141,122,110,120,123,114,116]} 1. Nf3 {[%emt 0:17:23]} d5 2. g3 {[%emt 0:01:13]} Bg4 {[%emt 0:00:39]} 3. Bg2 {[%emt 0:00:25]} Nd7 {[%emt 0:00:10]} 4. O-O {[%emt 0:03:01]} c6 {[%emt 0:00:45]} 5. h3 {[%emt 0:03:00]} Bh5 {[%emt 0:02:14]} 6. d3 {[%emt 0:05:41]} Ngf6 {[%emt 0:02:54]} 7. Qe1 {[%emt 0:05:09] A07: Réti Opening: New York and Capablanca Systems.} e5 {[%emt 0:07:55]} 8. e4 {[%emt 0:03:34]} dxe4 {[%emt 0:01:20]} 9. dxe4 {[%emt 0:00:08] The position is equal.} Bc5 {[%emt 0:03:50]} 10. b4 {[%emt 0:15:16]} Bxf3 {[%emt 0:04:00]} 11. Bxf3 {[%emt 0:00:14]} Be7 {[%emt 0:01:04] [#]} 12. a4 $146 {[%emt 0:08:09]} ({Predecessor:} 12. Bd2 O-O 13. a4 Qc7 14. Na3 Rfd8 15. Qe2 Nf8 16. Nc4 Ne6 17. Bg2 Nd4 18. Qd1 {½-½ Moutousis,K (2449)-Halkias,S (2564) GRE-ch Katakolo 2009 (2)}) 12... a5 {[%emt 0:03:36]} 13. bxa5 {[%emt 0:02:00]} Qxa5 {[%emt 0:02:50]} 14. Qxa5 {[%emt 0:06:22]} Rxa5 {[%emt 0:00:09]} 15. Bd2 {[%emt 0:00:29]} Ra7 {[%emt 0:02:27]} 16. Bc3 $1 {[%emt 0:00:21]} O-O {[%emt 0:10:37]} 17. Nd2 {[%emt 0:08:53]} b5 {[%emt 0:11:33]} 18. axb5 {[%emt 0:00:13]} Rxa1 {[%emt 0:00:07]} 19. Bxa1 {[%emt 0:00:07] This pair of bishops is nice.} cxb5 {[%emt 0:00:15]} 20. Be2 {[%emt 0:00:18]} Rc8 {[%emt 0:03:54]} 21. Bd3 {[%emt 0:07:48]} b4 {[%emt 0:02:32]} 22. f3 {[%emt 0:03:55][%cal Bf2f3,Bf3f4][%mdl 32]} Nh5 {[%emt 0:07:26]} 23. Kg2 {[%emt 0:01:50]} Rc6 {[%emt 0:05:27]} 24. Kh2 {[%emt 0:00:50]} f6 {[%emt 0:10:51]} 25. Nc4 {[%emt 0:02:26]} Bc5 {[%emt 0:02:12]} 26. f4 {[%emt 0:01:21][%cal Rf4e5]} b3 {[%emt 0:04:48]} 27. cxb3 $18 {[%emt 0:01:26]} Ra6 {[%emt 0:00:14]} 28. Bb2 {[%emt 0:01:26][%cal Rc4e5] [#] Nxe5! is the strong threat.} (28. fxe5 $6 Nxe5 29. Bxe5 fxe5 $16) 28... Ra2 {[%emt 0:02:25]} 29. Bb1 {[%emt 0:00:27]} Ra7 {[%emt 0:01:09]} (29... Ra8 {might work better.} 30. Rd1 (30. fxe5 fxe5 31. Bc3 Nhf6 $18) 30... Nb6 31. Nxb6 (31. fxe5 Nxc4 32. bxc4 Rb8 $18) 31... Bxb6 32. fxe5 Bc7 33. exf6 (33. g4 Nf4 $16) 33... Bxg3+ 34. Kg2 gxf6 35. Bxf6 Bc7) 30. fxe5 {[%emt 0:00:44]} fxe5 {[%emt 0:00:16]} 31. Bd3 {[%emt 0:01:20]} ({Don't play} 31. Bxe5 $6 Nxe5 32. Nxe5 Bd6 $16) 31... Bd4 {[%emt 0:01:18]} 32. b4 {[%emt 0:00:21] Wards off Nc5} ({White should play} 32. Bxd4 $18 exd4 33. Bb1) 32... Ra2 {[%emt 0:02:18]} (32... Bxb2 $16 33. Nxb2 Nhf6) 33. Rb1 $2 {[#]} (33. Bb1 $18 Ra4 34. Bxd4 exd4 35. e5) 33... Kf8 $16 34. Kg2 {[%emt 0:01:09]} Ke7 {[%emt 0:03:27]} (34... Nb6 $142 35. Nxb6 Rxb2+ 36. Rxb2 Bxb2) 35. Kf3 {[%emt 0:00:19]} Bxb2 {[%emt 0:00:57]} 36. Rxb2 {[%emt 0:00:02]} Rxb2 {[%emt 0:00:15]} 37. Nxb2 {[%emt 0:00:02][%mdl 4096] Endgame KBN-KNN} Nb6 {[%emt 0:00:28]} 38. Bc4 {[%emt 0:01:20]} Nf6 {[%emt 0:00:15]} 39. Bb3 {[%emt 0:00:23]} Kd6 40. Nd3 {[%emt 0:00:38]} Nbd7 {[%emt 0:01:03]} 41. Ba4 {[%emt 0:00:24]} Nb6 {[%emt 0:00:57] White is better.} 42. Bb5 {[%emt 0:00:05]} g5 {[%emt 0:01:45]} 43. Nf2 {[%emt 0:00:24]} h5 {[%emt 0:00:43] Wards off Ng4.   Weighted Error Value: White=0.16 (very precise) /Black=0.17 (very precise)} 1-0

[Event "SixDays Budapest January-GM 2023"]
[Site "Budapest"]
[Date "2023.01.24"]
[Round "2.5"]
[White "Chen, Qi b"]
[Black "Nagy, Gabor"]
[Result "1/2-1/2"]
[ECO "C42"]
[WhiteElo "2484"]
[BlackElo "2499"]
[Annotator "TA"]
[PlyCount "47"]
[EventDate "2023.01.23"]
[EventType "tourn"]
[EventCountry "HUN"]
[SourceTitle "playchess.com"]
[Source "ChessBase"]
[SourceQuality "1"]
[TimeControl "5400+30"]

{[%evp 14,47,39,38,30,39,48,45,45,34,72,74,100,90,108,66,58,66,92,82,103,107,115,121,183,40,47,41,24,32,45,45,47,46,37,33]} 1. e4 {[%emt 0:00:03]} e5 {[%emt 0:00:24]} 2. Nf3 {[%emt 0:00:05]} Nf6 {[%emt 0:00:28]} 3. Nxe5 {[%emt 0:01:13]} d6 {[%emt 0:00:19]} 4. Nf3 {[%emt 0:00:05]} Nxe4 {[%emt 0:00:17]} 5. d4 {[%emt 0:00:14]} d5 {[%emt 0:00:25]} 6. Bd3 {[%emt 0:00:14]} Nc6 {[%emt 0:00:27]} 7. O-O {[%emt 0:00:21]} Be7 {[%emt 0:00:20]} 8. Nbd2 {[%emt 0:03:34]} Nd6 {[%emt 0:01:23] C42: Petroff Defence: 3 Nxe5 and unusual White 3rd moves.} 9. c3 {[%emt 0:03:13] 9.Re1 is more fashionable.} O-O {[%emt 0:00:57]} 10. Re1 {[%emt 0:02:32]} Bf5 {[%emt 0:08:06]} 11. Nf1 {[%emt 0:04:41]} Re8 {[%emt 0:05:58]} 12. Bf4 {[%emt 0:04:52] [#] Black must now prevent Bxd6.} Be6 $146 {[%emt 0:12:23]} ({Predecessor:} 12... Bxd3 13. Qxd3 Ne4 14. Ne3 Nf6 15. Qb5 Rb8 16. Re2 a6 17. Qb3 Na5 18. Qc2 Nc4 19. Nxc4 dxc4 {1-0 Rakhimov,R (2142)-Pawlowski,W (2200) EU-ch 2016 pr23 email}) 13. Qc2 {[%emt 0:12:04]} h6 {[%emt 0:00:55]} 14. Ne5 {[%emt 0:04:17] White is much more active.} Nxe5 {[%emt 0:01:25]} 15. dxe5 {[%emt 0:01:25]} Nc4 {[%emt 0:01:35]} 16. Rad1 {[%emt 0:02:59] aiming for Bxc4.} Qc8 {[%emt 0:02:39]} 17. b3 {[%emt 0:07:43]} Nb6 {[%emt 0:00:47]} 18. Ng3 {[%emt 0:01:34]} c5 {[%emt 0:02:15] [#]} (18... Qd8 $16 {was called for.}) 19. Nf5 {[%emt 0:06:28]} (19. Qc1 $1 $18) 19... c4 $14 {[%emt 0:03:42]} 20. Nxe7+ {[%emt 0:00:53]} (20. bxc4 $5 Nxc4 21. Nd4 $11) 20... Rxe7 {[%emt 0:00:13]} 21. Bf1 {[%emt 0:00:54]} cxb3 {[%emt 0:04:40] White is slightly better.} 22. axb3 {[%emt 0:00:23]} Rc7 {[%emt 0:00:41]} 23. Rc1 {[%emt 0:07:28]} Nd7 {[%emt 0:03:38]} 24. Be3 {[%emt 0:03:46] Weighted Error Value: White=0.18 (very precise) /Black=0.11 (very precise)} 1/2-1/2

[Event "SixDays Budapest January-GM 2023"]
[Site "Budapest"]
[Date "2023.01.24"]
[Round "3.1"]
[White "Nagy, Gabor"]
[Black "Pajeken, Jakob Leon"]
[Result "1/2-1/2"]
[ECO "A06"]
[WhiteElo "2499"]
[BlackElo "2449"]
[Annotator "TA"]
[PlyCount "33"]
[EventDate "2023.01.23"]
[EventType "tourn"]
[EventCountry "HUN"]
[SourceTitle "playchess.com"]
[Source "ChessBase"]
[SourceQuality "1"]
[TimeControl "5400+30"]

{[%evp 12,33,8,5,8,10,14,6,12,4,0,0,0,0,0,0,0,-15,-7,0,0,-15,-6,0]} 1. Nf3 {[%emt 0:02:00]} d5 {[%emt 0:00:06]} 2. g3 {[%emt 0:01:47]} Bg4 {[%emt 0:00:14]} 3. Bg2 {[%emt 0:00:22]} Nd7 {[%emt 0:00:19]} 4. h3 {[%emt 0:00:32]} Bxf3 {[%emt 0:00:42]} 5. Bxf3 {[%emt 0:00:30]} Ngf6 {[%emt 0:00:23]} 6. d3 {[%emt 0:00:30]} c6 {[%emt 0:01:11]} 7. Nd2 {[%emt 0:01:31] The position is equal. was the old line (7.0-0).} e6 {[%emt 0:02:07] A07: Réti Opening: New York and Capablanca Systems.} 8. Bg2 {[%emt 0:01:10]} Bd6 {[%emt 0:01:00]} 9. e4 {[%emt 0:00:54]} Qb6 {[%emt 0:04:28]} 10. Qe2 {[%emt 0:02:02] [#]} O-O $146 {[%emt 0:02:20]} ({Predecessor:} 10... O-O-O 11. Nb3 d4 12. O-O e5 13. Bd2 Qc7 14. a4 Nc5 15. Na5 Kd7 16. Nc4 Rhe8 17. Nxd6 Qxd6 {½-½ Schulz,A (1878)-Lenz,H (2044) Ruhrgebiet VK2 0001 2000 (2)}) 11. Nf3 {[%emt 0:05:04] [#] e5 is the strong threat.} e5 {[%emt 0:04:48]} 12. O-O {[%emt 0:01:04]} Rfe8 {[%emt 0:02:20]} 13. Nh4 {[%emt 0:02:30]} g6 {[%emt 0:02:33]} 14. Nf3 {[%emt 0:06:13]} a5 {[%emt 0:05:09]} 15. Rb1 {[%emt 0:02:10]} Nc5 {[%emt 0:09:56][%cal Rd5e4]} 16. Nd2 {[%emt 0:07:33]} a4 {[%emt 0:09:45]} 17. Re1 {[%emt 0:03:28] Not much happened in this game.   Weighted Error Value: White=0.05 (flawless) /Black=0.02 (flawless)} 1/2-1/2